bitfinex-derivatives/quotes_BTCF0:USTF0_20250728
["timestamp","ask_amount","ask_price","bid_price","bid_amount"]
[1753668543198,1.5414577,119240.0,119230.0,0.6459]
[1753668547800,1.5414577,119240.0,119230.0,0.54544]
[1753668548101,1.6165419,119240.0,119230.0,0.54544]
[1753668548298,1.51154763,119240.0,119230.0,0.54544]
[1753668550903,1.65102497,119240.0,119230.0,0.54544]
[1753668551898,1.65102497,119240.0,119230.0,0.61506]
[1753668554105,1.65102497,119240.0,119230.0,0.6459]
[1753668554299,1.65102497,119240.0,119230.0,0.71003]
[1753668556308,1.57594077,119240.0,119230.0,0.71003]
[1753668556907,1.65102497,119240.0,119230.0,0.71003]
[1753668563106,1.84515532,119240.0,119230.0,0.66242]
[1753668563313,1.63603989,119240.0,119230.0,0.6459]
[1753668563500,1.84515532,119240.0,119230.0,0.54544]
[1753668563811,1.63603989,119240.0,119230.0,0.502]
[1753668564413,1.84515532,119240.0,119230.0,0.502]
[1753668564713,1.63603989,119240.0,119230.0,0.502]
[1753668566512,1.57594077,119240.0,119230.0,0.502]
[1753668566914,1.57594077,119240.0,119230.0,0.618]
[1753668567115,1.57594077,119240.0,119230.0,0.64841]
[1753668567317,1.57594077,119240.0,119230.0,0.71031]
[1753668567517,1.7850562,119240.0,119230.0,0.502]
[1753668568018,1.57594077,119240.0,119230.0,0.502]
[1753668568212,1.57594077,119240.0,119230.0,0.618]
[1753668568405,1.57594077,119240.0,119230.0,0.64841]
[1753668568607,1.57594077,119240.0,119230.0,0.54838]
[1753668568811,1.57594077,119240.0,119230.0,0.502]
[1753668569016,1.15770991,119240.0,119230.0,0.502]
[1753668569211,1.57594077,119240.0,119230.0,0.502]
[1753668569718,1.57594077,119240.0,119230.0,0.57162]
[1753668570318,1.7850562,119240.0,119230.0,0.57162]
[1753668570719,1.57594077,119240.0,119230.0,0.57162]
[1753668571319,1.7850562,119240.0,119230.0,0.57162]
[1753668571522,1.7850562,119240.0,119230.0,0.502]
[1753668573315,1.57594077,119240.0,119230.0,0.502]
[1753668574621,1.68093504,119240.0,119230.0,0.502]
[1753668574817,1.89005047,119240.0,119230.0,0.502]
[1753668575420,1.90669658,119240.0,119230.0,0.4340107]
[1753668575820,1.80170231,119240.0,119230.0,0.4340107]
[1753668576021,1.17435602,119240.0,119230.0,0.4340107]
[1753668576223,1.59258688,119240.0,119230.0,0.4340107]
[1753668576427,1.57594077,119240.0,119230.0,0.4340107]
[1753668576725,1.57510077,119240.0,119230.0,0.6423207]
[1753668576916,1.57510077,119240.0,119230.0,0.6669607]
[1753668579826,1.57510077,119240.0,119230.0,0.6669607]
[1753668582727,1.65025688,119240.0,119230.0,0.6669607]
[1753668586324,1.23194602,119240.0,119230.0,0.87607613]
[1753668586528,1.44106145,119240.0,119230.0,0.87607613]
[1753668586832,1.36590534,119240.0,119230.0,0.87607613]
[1753668587033,1.36590534,119240.0,119230.0,1.04377213]
[1753668587234,0.19326991,119240.0,119230.0,1.25288756]
[1753668587434,0.26842602,119240.0,119230.0,1.04377213]
[1753668588037,0.19326991,119240.0,119230.0,1.04377213]
[1753668588225,0.26842288,119240.0,119230.0,1.04377213]
[1753668588734,0.26842288,119240.0,119230.0,1.11334337]
[1753668592230,0.19326991,119240.0,119230.0,1.11334337]
[1753668595244,0.10073098,119240.0,119230.0,1.11334337]
[1753668595435,0.02557801,119240.0,119230.0,1.11334337]
[1753668595735,0.19326001,119240.0,119230.0,1.11334337]
[1753668596133,0.08562464,119240.0,119230.0,1.13009832]
[1753668596338,0.10073098,119240.0,119230.0,1.29783432]
[1753668596940,0.02557801,119240.0,119230.0,1.29783432]
[1753668597139,0.19325991,119240.0,119230.0,1.29783432]
[1753668597340,0.25329409,119240.0,119230.0,1.29783432]
[1753668597644,0.25329409,119240.0,119230.0,1.13009832]
[1753668597841,0.19325991,119240.0,119230.0,1.13009832]
[1753668599245,0.02557801,119240.0,119230.0,1.13009832]
[1753668601245,0.52591468,119260.0,119250.0,0.167668]
[1753668601453,0.26365335,119260.0,119250.0,1.34430467]
[1753668601645,0.32368047,119260.0,119250.0,1.34430467]
[1753668602244,0.26365335,119260.0,119250.0,1.34430467]
[1753668602446,0.26365335,119260.0,119250.0,1.77831467]
[1753668602651,0.36529335,119260.0,119250.0,1.77931467]
[1753668603543,0.36929335,119260.0,119250.0,1.78031467]
[1753668604245,0.36829335,119260.0,119250.0,1.78031467]
[1753668606648,0.30922335,119260.0,119250.0,1.78031467]
[1753668608153,0.44111335,119260.0,119250.0,1.78031467]
[1753668608347,0.50863335,119260.0,119250.0,1.78031467]
[1753668610557,0.50863335,119260.0,119250.0,1.501628]
[1753668610758,0.50863335,119260.0,119250.0,1.78031467]
[1753668613455,0.30222335,119260.0,119250.0,1.78031467]
[1753668614266,0.45889047,119260.0,119250.0,1.78031467]
[1753668615666,0.52641047,119260.0,119250.0,1.78031467]
[1753668616870,0.45889047,119260.0,119250.0,1.78031467]
[1753668618773,0.45889047,119260.0,119250.0,1.71057711]
[1753668619365,0.39982047,119260.0,119250.0,1.71057711]
[1753668620373,0.39162552,119260.0,119250.0,1.71057711]
[1753668620873,0.28156162,119260.0,119250.0,1.91952622]
[1753668621073,0.008,119260.0,119250.0,1.91952622]
[1753668621976,0.56043903,119280.0,119270.0,0.40639354]
[1753668622273,0.56043903,119280.0,119270.0,1.28830265]
[1753668622768,0.56043903,119280.0,119270.0,1.07935354]
[1753668622970,0.60268903,119280.0,119270.0,1.28830265]
[1753668623672,0.81163814,119280.0,119270.0,1.28830265]
[1753668623875,0.81663814,119280.0,119270.0,1.72331265]
[1753668624373,0.75661102,119280.0,119270.0,1.72331265]
[1753668624767,0.54766191,119280.0,119270.0,1.79289015]
[1753668624966,0.55066191,119280.0,119270.0,1.79289015]
[1753668627768,0.50875311,119280.0,119270.0,1.79289015]
[1753668629876,0.56887098,119280.0,119270.0,1.79289015]
[1753668632282,0.50875311,119280.0,119270.0,1.79289015]
[1753668632881,0.27177311,119280.0,119270.0,1.79289015]
[1753668633283,0.1757386,119280.0,119270.0,1.79289015]
[1753668633578,0.23584932,119280.0,119270.0,1.79289015]
[1753668633780,0.2253586,119280.0,119270.0,1.79289015]
[1753668634485,0.23374744,119280.0,119270.0,1.79289015]
[1753668634678,0.27042744,119280.0,119270.0,1.51436354]
[1753668634879,0.35462744,119280.0,119270.0,1.79289015]
[1753668637384,0.42978041,119280.0,119270.0,1.79289015]
[1753668638086,0.35462744,119280.0,119270.0,1.79289015]
[1753668641289,0.41473753,119280.0,119270.0,1.79289015]
[1753668641493,0.2253586,119280.0,119270.0,1.79289015]
[1753668642088,0.1757264,119280.0,119270.0,1.79289015]
[1753668642687,0.0081,119280.0,119270.0,1.79289015]
[1753668642887,0.13571832,119300.0,119290.0,0.3721821]
[1753668642888,0.3316239,119300.0,119290.0,0.3721821]
[1753668643090,0.27737584,119300.0,119290.0,1.35250636]
[1753668643282,0.2172298,119300.0,119290.0,1.35250636]
[1753668643490,0.1676098,119300.0,119290.0,1.35250636]
[1753668644189,0.1676098,119300.0,119290.0,1.78651636]
[1753668644390,0.1716098,119300.0,119290.0,1.78651636]
[1753668645994,0.2212298,119300.0,119290.0,1.78651636]
[1753668646993,0.1716098,119300.0,119290.0,1.78651636]
[1753668648589,0.004,119300.0,119290.0,1.78651636]
[1753668649795,0.1715988,119300.0,119290.0,1.78651636]
[1753668650594,0.1675988,119300.0,119290.0,1.78851636]
[1753668650797,0.1685988,119300.0,119290.0,1.78851636]
[1753668651194,0.2182188,119300.0,119290.0,1.78851636]
[1753668651596,0.72363541,119300.0,119290.0,0.60251765]
[1753668651897,0.72363541,119300.0,119290.0,0.68400055]
[1753668652098,0.72363541,119300.0,119290.0,0.43601]
[1753668652296,1.20142945,119300.0,119290.0,0.43601]
[1753668652488,1.21643638,119300.0,119290.0,0.12319964]
[1753668652800,0.2579309,119270.0,119260.0,0.04757]
[1753668653095,0.257945,119260.0,119250.0,0.04757]
[1753668653404,0.53647161,119260.0,119250.0,0.215239]
[1753668653699,0.53647161,119260.0,119250.0,0.04757]
[1753668654088,0.53647161,119260.0,119250.0,0.2152391]
[1753668654497,0.53647161,119260.0,119250.0,0.2172391]
[1753668654696,0.53647161,119260.0,119250.0,0.4459991]
[1753668654999,0.54435161,119260.0,119250.0,0.9459991]
[1753668655597,0.265825,119260.0,119250.0,0.9459991]
[1753668658297,0.265825,119260.0,119250.0,0.77833]
[1753668658493,0.265825,119260.0,119250.0,1.45069]
[1753668659101,0.54435161,119260.0,119250.0,1.45069]
[1753668659402,0.54435161,119260.0,119250.0,1.6183591]
[1753668659898,0.260975,119260.0,119250.0,1.22452571]
[1753668660094,0.260975,119260.0,119250.0,1.89684571]
[1753668660396,0.45104974,119270.0,119260.0,0.447655]
[1753668660591,0.2255835,119270.0,119260.0,0.72618161]
[1753668660797,0.32577179,119280.0,119270.0,0.4476409]
[1753668661095,0.11319929,119280.0,119270.0,1.39852751]
[1753668661303,0.01864929,119280.0,119270.0,1.39852751]
[1753668662201,0.18627619,119280.0,119270.0,1.89852751]
[1753668663596,0.18927619,119280.0,119270.0,1.89852751]
[1753668664002,0.18627619,119280.0,119270.0,1.89852751]
[1753668664194,0.18627619,119280.0,119270.0,1.89952751]
[1753668664795,0.1676269,119280.0,119270.0,1.89952751]
[1753668664996,0.1676269,119280.0,119270.0,1.91682554]
[1753668665401,0.1676269,119280.0,119270.0,1.63829893]
[1753668665598,0.1676269,119280.0,119270.0,1.91682554]
[1753668668796,0.1836426,119290.0,119280.0,0.2789769]
[1753668668797,0.251431,119290.0,119280.0,0.2789769]
[1753668669104,0.1676236,119290.0,119280.0,0.72615351]
[1753668669299,0.2651862,119300.0,119290.0,0.4476128]
[1753668669603,0.41797865,119310.0,119300.0,0.4475988]
[1753668669803,0.41797865,119310.0,119300.0,0.72612541]
[1753668670003,0.42282865,119310.0,119300.0,0.72612541]
[1753668670900,0.42582865,119310.0,119300.0,1.22612541]
[1753668671099,0.42582865,119310.0,119300.0,1.6197988]
[1753668671404,0.42482865,119310.0,119300.0,1.6197988]
[1753668673805,0.42582865,119310.0,119300.0,1.6197988]
[1753668674304,0.42582865,119310.0,119300.0,1.89832541]
[1753668675202,0.42582865,119310.0,119300.0,1.6197988]
[1753668675410,0.42582865,119310.0,119300.0,1.89832541]
[1753668678109,0.50098162,119310.0,119300.0,1.89832541]
[1753668682915,0.50098162,119310.0,119300.0,1.4522]
[1753668683219,0.50098162,119310.0,119300.0,1.89832541]
[1753668683921,0.35665292,119310.0,119300.0,1.89832541]
[1753668685018,0.23960175,119310.0,119300.0,1.89832541]
[1753668685215,0.02185541,119310.0,119300.0,1.89832541]
[1753668685421,0.07515297,119320.0,119310.0,0.4509047]
[1753668685615,0.07515297,119320.0,119310.0,0.72943131]
[1753668686118,0.36839577,119330.0,119320.0,0.4508906]
[1753668686317,0.36839577,119330.0,119320.0,1.40373721]
[1753668686520,0.36515317,119330.0,119320.0,1.40373721]
[1753668686822,0.36515317,119330.0,119320.0,1.1252106]
[1753668687016,0.37355203,119330.0,119320.0,1.40373721]
[1753668687217,0.43031203,119330.0,119320.0,1.40373721]
[1753668687417,0.43094203,119330.0,119320.0,1.6252106]
[1753668688021,0.35578906,119330.0,119320.0,1.6252106]
[1753668688222,0.35678906,119330.0,119320.0,1.6252106]
[1753668688419,0.43194203,119330.0,119320.0,1.6252106]
[1753668690719,0.41690439,119330.0,119320.0,1.6252106]
[1753668691621,0.41690439,119330.0,119320.0,1.45764]
[1753668692519,0.64111567,119330.0,119320.0,0.78332]
[1753668692712,0.71926864,119330.0,119320.0,0.78332]
[1753668693721,0.43774203,119330.0,119320.0,0.78332]
[1753668693920,0.43674203,119330.0,119320.0,0.78332]
[1753668694116,0.43194203,119330.0,119320.0,0.78332]
[1753668694322,0.43194203,119330.0,119320.0,0.9508907]
[1753668695025,0.35678906,119330.0,119320.0,0.9508907]
[1753668697723,0.35678906,119330.0,119320.0,0.78332]
[1753668697915,0.36158906,119330.0,119320.0,0.78332]
[1753668698116,0.36258906,119330.0,119320.0,0.78332]
[1753668698322,0.36258906,119330.0,119320.0,0.9508908]
[1753668699125,0.42275846,119330.0,119320.0,0.9508908]
[1753668700720,0.42175846,119330.0,119320.0,0.9508908]
[1753668700926,0.27902706,119330.0,119320.0,0.96787881]
[1753668701126,0.27902706,119330.0,119320.0,1.24640542]
[1753668701732,0.31767706,119330.0,119320.0,1.24640542]
[1753668702021,0.37506706,119330.0,119320.0,0.96787881]
[1753668702525,0.37443706,119330.0,119320.0,1.24640542]
[1753668703421,0.37443706,119330.0,119320.0,0.96787881]
[1753668704028,0.37443706,119330.0,119320.0,1.24640542]
[1753668704832,0.37443706,119330.0,119320.0,0.96787881]
[1753668705040,0.37443706,119330.0,119320.0,1.24640542]
[1753668705334,0.31767706,119330.0,119320.0,1.24640542]
[1753668705625,0.27902706,119330.0,119320.0,1.24640542]
[1753668707134,0.27802706,119330.0,119320.0,1.24640542]
[1753668707328,0.27902706,119330.0,119320.0,1.24640542]
[1753668707829,0.28002706,119330.0,119320.0,1.24640542]
[1753668709631,0.31867706,119330.0,119320.0,1.24640542]
[1753668709934,0.37543706,119330.0,119320.0,1.24640542]
[1753668711230,0.37606706,119330.0,119320.0,1.24640542]
[1753668711533,0.37606706,119330.0,119320.0,1.07883462]
[1753668711734,0.66039367,119330.0,119320.0,1.48058801]
[1753668712734,0.60022427,119330.0,119320.0,1.48058801]
[1753668713131,0.73560738,119330.0,119320.0,0.78332]
[1753668713330,0.66045441,119330.0,119320.0,0.78332]
[1753668714136,0.66345441,119330.0,119320.0,0.64812]
[1753668714332,0.66345441,119330.0,119320.0,0.5479]
[1753668714537,0.70821854,119330.0,119320.0,0.5206421]
[1753668714738,0.70821854,119330.0,119320.0,0.7016821]
[1753668714945,0.70821854,119330.0,119320.0,0.73563]
[1753668715428,0.67854852,119330.0,119320.0,0.73563]
[1753668715940,0.67854852,119330.0,119320.0,0.23563]
[1753668716133,0.60322427,119330.0,119320.0,0.23563]
[1753668716332,0.67852909,119330.0,119320.0,0.23563]
[1753668716732,0.67852909,119330.0,119320.0,0.28111]
[1753668717129,0.60322427,119330.0,119320.0,0.28111]
[1753668718240,0.60322427,119330.0,119320.0,0.22652]
[1753668719638,0.61982277,119330.0,119320.0,0.22652]
[1753668719829,0.78743077,119330.0,119320.0,0.04548]
[1753668720032,0.1675991,119300.0,119290.0,0.12000986]
[1753668720231,0.70029916,119300.0,119290.0,0.24510986]
[1753668720630,0.70029298,119300.0,119290.0,0.24510986]
[1753668720830,0.64008421,119300.0,119290.0,0.24510986]
[1753668721137,0.70028836,119300.0,119290.0,0.24510986]
[1753668721335,0.70028836,119300.0,119290.0,0.74510986]
[1753668721741,0.70028836,119300.0,119290.0,0.74710986]
[1753668722037,0.70028836,119300.0,119290.0,0.75010986]
[1753668722241,0.70028836,119300.0,119290.0,0.79558986]
[1753668723441,0.70028836,119300.0,119290.0,0.79358986]
[1753668723743,0.70028836,119300.0,119290.0,0.79158986]
[1753668726545,1.37996836,119300.0,119290.0,0.79158986]
[1753668726944,1.37996836,119300.0,119290.0,0.69891986]
[1753668728040,1.31976421,119300.0,119290.0,0.69891986]
[1753668728249,1.39506903,119300.0,119290.0,0.69891986]
[1753668728440,1.39506903,119300.0,119290.0,0.79158986]
[1753668728641,1.31976421,119300.0,119290.0,0.79158986]
[1753668731449,1.0412376,119300.0,119290.0,0.7748]
[1753668731744,0.2173076,119300.0,119290.0,1.22093991]
[1753668731942,0.24423899,119300.0,119290.0,1.22093991]
[1753668732253,0.1841976,119300.0,119290.0,1.90069991]
[1753668732941,0.0165985,119300.0,119290.0,1.90069991]
[1753668733352,0.06004139,119300.0,119290.0,1.90069991]
[1753668733847,0.32979932,119310.0,119300.0,0.2795592]
[1753668734148,0.38824678,119310.0,119300.0,0.71992581]
[1753668734347,0.38824678,119310.0,119300.0,0.4413992]
[1753668734547,0.48310678,119310.0,119300.0,0.4413992]
[1753668735050,0.48410678,119310.0,119300.0,0.4413992]
[1753668735239,0.48510678,119310.0,119300.0,0.4413992]
[1753668735445,0.48510678,119310.0,119300.0,0.9413992]
[1753668735749,0.48510678,119310.0,119300.0,0.7738]
[1753668736145,0.48410678,119310.0,119300.0,0.7738]
[1753668736345,0.48410678,119310.0,119300.0,0.9433992]
[1753668737254,0.51721678,119310.0,119300.0,0.9433992]
[1753668737453,0.51621678,119310.0,119300.0,0.9433992]
[1753668737954,0.45617539,119310.0,119300.0,0.9433992]
[1753668738349,0.45617539,119310.0,119300.0,0.9443992]
[1753668740356,0.51621678,119310.0,119300.0,0.9443992]
[1753668740656,0.38824678,119310.0,119300.0,0.9443992]
[1753668740858,0.38824678,119310.0,119300.0,1.22292581]
[1753668742050,0.48310678,119310.0,119300.0,0.9443992]
[1753668742250,0.51621678,119310.0,119300.0,0.9443992]
[1753668742659,0.45617539,119310.0,119300.0,0.9443992]
[1753668743953,0.32820539,119310.0,119300.0,1.22292581]
[1753668747261,0.24440929,119310.0,119300.0,1.22292581]
[1753668751570,0.22604156,119310.0,119300.0,1.22292581]
[1753668756180,0.22604156,119310.0,119300.0,0.9443992]
[1753668756382,0.22604156,119310.0,119300.0,1.22292581]
[1753668766183,0.01654896,119310.0,119300.0,1.22292581]
[1753668766392,0.06004139,119320.0,119310.0,0.4412251]
[1753668766684,0.06004139,119320.0,119310.0,1.39995171]
[1753668767682,0.06004139,119320.0,119310.0,1.89995171]
[1753668768091,0.35370886,119330.0,119320.0,0.4412111]
[1753668768092,0.39107886,119330.0,119320.0,0.4412111]
[1753668768278,0.46634511,119330.0,119320.0,0.65181024]
[1753668768484,0.49745511,119330.0,119320.0,0.65181024]
[1753668768684,0.54503511,119330.0,119320.0,0.65181024]
[1753668769085,0.46976886,119330.0,119320.0,0.37328363]
[1753668769286,0.47076886,119330.0,119320.0,0.37328363]
[1753668769488,0.50613522,119330.0,119320.0,0.87328363]
[1753668769792,0.38329636,119330.0,119320.0,0.87328363]
[1753668769992,0.38329636,119330.0,119320.0,1.15181024]
[1753668770293,0.34140486,119330.0,119320.0,1.15181024]
[1753668770595,0.34140486,119330.0,119320.0,1.21858132]
[1753668773199,0.34140486,119330.0,119320.0,0.94005471]
[1753668773985,0.29951536,119330.0,119320.0,0.94005471]
[1753668774497,0.37476023,119330.0,119320.0,0.94005471]
[1753668775397,0.35970933,119330.0,119320.0,0.94005471]
[1753668777692,0.01139886,119330.0,119320.0,1.21858132]
[1753668778297,0.17895596,119330.0,119320.0,1.21858132]
[1753668778998,0.23914993,119330.0,119320.0,1.21858132]
[1753668779697,0.17895596,119330.0,119320.0,1.21858132]
[1753668787511,0.17895596,119330.0,119320.0,1.49710793]
[1753668787512,0.003,119330.0,119320.0,1.49710793]
[1753668788004,0.003,119330.0,119320.0,1.51582753]
[1753668789010,0.001,119330.0,119320.0,1.51582753]
[1753668789212,0.1685572,119330.0,119320.0,1.23730092]
[1753668790417,0.1685572,119330.0,119320.0,1.91570092]
[1753668792017,0.1685572,119330.0,119320.0,1.23730092]
[1753668792219,0.1685572,119330.0,119320.0,1.91570092]
[1753668792717,0.1675572,119330.0,119320.0,1.91570092]
[1753668793829,0.1675572,119330.0,119320.0,1.91562092]
[1753668794919,0.2546672,119330.0,119320.0,0.95877431]
[1753668795118,0.3354372,119330.0,119320.0,0.95877431]
[1753668795419,0.3354372,119330.0,119320.0,1.63665431]
[1753668797422,0.3354372,119330.0,119320.0,1.63653431]
[1753668798326,0.3354372,119330.0,119320.0,1.91506092]
[1753668800124,0.2897972,119330.0,119320.0,1.91474092]
[1753668803823,0.2897972,119330.0,119320.0,1.23730092]
[1753668804028,0.2897972,119330.0,119320.0,1.91438092]
[1753668804328,0.2026872,119330.0,119320.0,1.91438092]
[1753668804527,0.1675572,119330.0,119320.0,1.91438092]
[1753668807426,0.1675572,119330.0,119320.0,2.19290753]
[1753668808428,0.1675572,119330.0,119320.0,1.91438092]
[1753668813229,0.1675572,119330.0,119320.0,1.63585431]
[1753668813436,0.1675572,119330.0,119320.0,1.91394092]
[1753668814129,0.1675572,119330.0,119320.0,1.02670178]
[1753668814130,0.2866872,119330.0,119320.0,1.02670178]
[1753668814331,0.61400381,119330.0,119320.0,1.70326178]
[1753668814835,0.3354772,119330.0,119320.0,1.70326178]
[1753668815537,0.61400381,119330.0,119320.0,1.70330178]
[1753668815737,0.63292622,119330.0,119320.0,1.70330178]
[1753668816035,0.35439961,119330.0,119320.0,1.70330178]
[1753668816230,0.35439961,119330.0,119320.0,1.02670178]
[1753668816430,0.35439961,119330.0,119320.0,1.70330178]
[1753668818343,0.25998219,119340.0,119330.0,0.4387473]
[1753668818537,0.17607219,119340.0,119330.0,0.71727391]
[1753668819742,0.17607219,119340.0,119330.0,1.21727391]
[1753668819941,0.17707219,119340.0,119330.0,1.21727391]
[1753668820642,0.17907219,119340.0,119330.0,1.21727391]
[1753668821443,0.01152069,119340.0,119330.0,1.21727391]
[1753668821639,0.07171466,119340.0,119330.0,1.21727391]
[1753668822542,0.06319397,119340.0,119330.0,1.21727391]
[1753668822737,0.003,119340.0,119330.0,1.21727391]
[1753668823542,0.1705432,119340.0,119330.0,1.21727391]
[1753668824742,0.1705432,119340.0,119330.0,0.9387473]
[1753668824944,0.1705432,119340.0,119330.0,1.21727391]
[1753668825846,0.23076935,119340.0,119330.0,1.21727391]
[1753668827950,0.1705432,119340.0,119330.0,1.21727391]
[1753668834455,0.003,119340.0,119330.0,1.21727391]
[1753668836356,0.1705437,119340.0,119330.0,1.21727391]
[1753668836651,0.003,119340.0,119330.0,1.21727391]
[1753668841554,0.1705436,119340.0,119330.0,1.21727391]
[1753668841961,0.003,119340.0,119330.0,1.21727391]
[1753668842557,0.1705436,119340.0,119330.0,1.21727391]
[1753668843257,0.1705436,119340.0,119330.0,0.9387473]
[1753668843463,0.61408021,119340.0,119330.0,1.6246273]
[1753668843863,0.61408021,119340.0,119330.0,0.77119]
[1753668844164,0.67430636,119340.0,119330.0,1.5716176]
[1753668844363,0.67430636,119340.0,119330.0,1.5373476]
[1753668844662,0.61408021,119340.0,119330.0,1.5373476]
[1753668844863,0.67430636,119340.0,119330.0,1.5373476]
[1753668847064,0.61408021,119340.0,119330.0,1.5373476]
[1753668847656,0.61408021,119340.0,119330.0,1.36979]
[1753668847863,0.61408021,119340.0,119330.0,1.30828]
[1753668848164,0.61408021,119340.0,119330.0,1.3668]
[1753668848564,0.61408021,119340.0,119330.0,1.5343577]
[1753668848770,0.61408021,119340.0,119330.0,1.5882977]
[1753668849463,0.67427028,119340.0,119330.0,1.5882977]
[1753668849658,0.67427028,119340.0,119330.0,0.9024577]
[1753668849859,0.39574367,119340.0,119330.0,0.9390177]
[1753668850061,0.67427028,119340.0,119330.0,0.9390177]
[1753668850767,0.67427028,119340.0,119330.0,0.77146]
[1753668851465,0.61408021,119340.0,119330.0,0.77146]
[1753668851767,0.67426683,119340.0,119330.0,0.77146]
[1753668856166,0.39574022,119340.0,119330.0,0.77146]
[1753668856372,0.67426683,119340.0,119330.0,0.77146]
[1753668857972,0.61408021,119340.0,119330.0,0.77146]
[1753668860666,0.71907448,119340.0,119330.0,0.77146]
[1753668862172,0.61408021,119340.0,119330.0,0.77146]
[1753668869685,1.37186701,119340.0,119330.0,0.68096]
[1753668870077,1.29664021,119340.0,119330.0,0.68096]
[1753668871080,1.29664021,119340.0,119330.0,0.5]
[1753668871480,1.29664021,119340.0,119330.0,0.54851]
[1753668871683,1.29664021,119340.0,119330.0,0.65015]
[1753668872276,1.29664021,119340.0,119330.0,0.68046]
[1753668872477,1.29664021,119340.0,119330.0,0.71602]
[1753668872678,1.29664021,119340.0,119330.0,0.76738]
[1753668873492,1.37186701,119340.0,119330.0,0.76738]
[1753668874496,1.29664021,119340.0,119330.0,0.76738]
[1753668875092,1.29664021,119340.0,119330.0,0.71602]
[1753668876791,1.29664021,119340.0,119330.0,0.76738]
[1753668878197,1.29664021,119340.0,119330.0,0.68046]
[1753668879301,1.29664021,119340.0,119330.0,0.71602]
[1753668879501,1.29664021,119340.0,119330.0,0.76738]
[1753668879899,1.40163448,119340.0,119330.0,0.76738]
[1753668880797,1.54064383,119340.0,119330.0,0.76738]
[1753668881300,1.55717643,119340.0,119330.0,0.69944978]
[1753668881500,1.52740825,119340.0,119330.0,0.69944978]
[1753668882102,1.51087565,119340.0,119330.0,0.69944978]
[1753668884605,1.51087565,119340.0,119330.0,0.66388978]
[1753668884802,1.49582257,119340.0,119330.0,0.61252978]
[1753668885203,1.49582257,119340.0,119330.0,0.64808978]
[1753668885401,1.49582257,119340.0,119330.0,0.69944978]
[1753668885903,1.43564956,119340.0,119330.0,0.69944978]
[1753668889211,1.51087565,119340.0,119330.0,0.69944978]
[1753668894712,1.43564956,119340.0,119330.0,0.69944978]
[1753668894911,1.0181136,119340.0,119330.0,0.69944978]
[1753668895109,1.43564956,119340.0,119330.0,0.69944978]
[1753668897110,1.51086335,119340.0,119330.0,0.69944978]
[1753668898713,1.43564956,119340.0,119330.0,0.69944978]
[1753668902420,0.75308956,119340.0,119330.0,0.69944978]
[1753668902719,1.43132956,119340.0,119330.0,0.69944978]
[1753668904414,0.2234036,119340.0,119330.0,0.90821776]
[1753668904620,0.1705436,119340.0,119330.0,1.28454324]
[1753668904821,0.23076113,119340.0,119330.0,1.28454324]
[1753668905217,0.23076113,119340.0,119330.0,1.07577526]
[1753668905411,0.00098753,119340.0,119330.0,1.96934324]
[1753668905821,0.25979957,119350.0,119340.0,0.2735534]
[1753668906121,0.21791587,119350.0,119340.0,0.84487936]
[1753668906922,0.21791587,119350.0,119340.0,0.70553624]
[1753668907520,0.21791587,119350.0,119340.0,1.13759624]
[1753668908219,0.2941434,119350.0,119340.0,1.13759624]
[1753668909220,0.2951434,119350.0,119340.0,1.13759624]
[1753668913420,0.1695408,119350.0,119340.0,1.13759624]
[1753668914728,0.1695408,119350.0,119340.0,0.8594034]
[1753668914919,0.1695408,119350.0,119340.0,1.13759624]
[1753668926828,0.1695408,119350.0,119340.0,1.27666508]
[1753668929131,0.1695408,119350.0,119340.0,0.8594034]
[1753668929331,0.1695408,119350.0,119340.0,1.27666508]
[1753668930235,0.1695408,119350.0,119340.0,0.8594034]
[1753668930531,0.1695408,119350.0,119340.0,1.27666508]
[1753668931635,0.1695408,119350.0,119340.0,0.8594034]
[1753668931932,0.1695408,119350.0,119340.0,1.27666508]
[1753668933324,0.002,119350.0,119340.0,1.27666508]
[1753668933525,0.002,119350.0,119340.0,1.50385321]
[1753668933735,0.1695295,119350.0,119340.0,1.29522237]
[1753668934932,0.002,119350.0,119340.0,1.29522237]
[1753668935234,0.1695296,119350.0,119340.0,1.29522237]
[1753668938230,0.3324196,119350.0,119340.0,1.29522237]
[1753668938731,0.2847096,119350.0,119340.0,1.29522237]
[1753668939037,0.2345896,119350.0,119340.0,1.29522237]
[1753668939337,0.2022396,119350.0,119340.0,1.29522237]
[1753668940439,0.3000696,119350.0,119340.0,1.29522237]
[1753668940929,0.2523596,119350.0,119340.0,1.29522237]
[1753668941135,0.3124441,119350.0,119340.0,1.29522237]
[1753668941940,0.3601541,119350.0,119340.0,1.29522237]
[1753668942436,0.69119494,119350.0,119340.0,1.76703163]
[1753668946743,0.69119494,119350.0,119340.0,1.97566247]
[1753668947943,0.64190494,119350.0,119340.0,1.97566247]
[1753668948143,0.58182044,119350.0,119340.0,1.97566247]
[1753668950349,0.3731896,119350.0,119340.0,1.97566247]
[1753668950649,0.40764713,119350.0,119340.0,1.97566247]
[1753668952146,0.2847096,119350.0,119340.0,1.97566247]
[1753668954543,0.2345896,119350.0,119340.0,1.97566247]
[1753668954744,0.2022396,119350.0,119340.0,1.97566247]
[1753668955141,0.1695296,119350.0,119340.0,1.97566247]
[1753668958152,0.22985284,119350.0,119340.0,1.97566247]
[1753668961252,0.22985284,119350.0,119340.0,1.55840079]
[1753668961445,0.22985284,119350.0,119340.0,1.97566247]
[1753668962455,0.24637852,119350.0,119340.0,1.97566247]
[1753668965853,0.07884892,119350.0,119340.0,1.97566247]
[1753668966052,0.24637862,119350.0,119340.0,1.97566247]
[1753668967753,0.01852568,119350.0,119340.0,2.18429331]
[1753668967959,0.1675055,119370.0,119360.0,0.4254856]
[1753668968161,0.22783867,119370.0,119360.0,1.51982728]
[1753668968359,0.22662301,119380.0,119370.0,0.4254715]
[1753668968560,0.22662301,119380.0,119370.0,0.84273318]
[1753668968561,0.29307891,119380.0,119370.0,0.84273318]
[1753668968760,0.08371081,119380.0,119370.0,0.84273318]
[1753668969064,0.17579457,119380.0,119370.0,0.84273318]
[1753668969258,0.06859815,119380.0,119370.0,0.84273318]
[1753668969458,0.06029118,119380.0,119370.0,0.84273318]
[1753668969762,0.31152374,119380.0,119370.0,0.92647868]
[1753668969957,0.2361199,119380.0,119370.0,1.35853868]
[1753668970163,0.2371199,119380.0,119370.0,1.35853868]
[1753668970462,0.17683139,119380.0,119370.0,0.89866084]
[1753668970964,0.17783139,119380.0,119370.0,0.89866084]
[1753668971358,0.50000223,119380.0,119370.0,1.57570084]
[1753668971666,0.54623223,119380.0,119370.0,1.57570084]
[1753668972459,0.54623223,119380.0,119370.0,1.74320244]
[1753668972660,0.54623223,119380.0,119370.0,1.57570084]
[1753668972861,0.33760139,119380.0,119370.0,1.8126351]
[1753668974864,0.29137139,119380.0,119370.0,1.8126351]
[1753668978169,0.20936139,119380.0,119370.0,1.8126351]
[1753668978870,0.17783139,119380.0,119370.0,1.8126351]
[1753668981167,0.1694876,119380.0,119370.0,1.8126351]